[Event "DSAM Bad Wildungen 2024"]
[Site "Bad Wildungen"]
[Date "2024.08.01"]
[Round "1.9"]
[White "Kamp, Adrian"]
[Black "Belz, Frank-Martin"]
[Result "1-0"]
[Annotator "RC"]
[ECO "B12"]
[WhiteElo "2120"]
[BlackElo "2025"]
[PlyCount "85"]
[EventDate "2024.07.31"]
[EventCountry "GER"]
[SourceTitle "playchess.com"]
[Source "ChessBase"]
[SourceQuality "1"]
[TimeControl "40/5400+30:900+30"]

1. e4 {[%emt 0:00:14]} c6 {[%emt 0:00:02]} 2. d4 {[%emt 0:00:12]} d5 {[%emt 0:00:04]} 3. e5 {[%emt 0:00:24]} c5 {[%emt 0:00:02]} 4. dxc5 {[%emt 0:00:17]} e6 {[%emt 0:00:10]} 5. a3 {[%emt 0:00:31]} Bxc5 {[%emt 0:00:07]} 6. b4 {[%emt 0:00:16]} Be7 {[%emt 0:00:03]} 7. Qg4 {[%emt 0:00:31]} g6 {[%emt 0:05:10]} 8. Nf3 {[%emt 0:00:59]} h5 {[%emt 0:00:35]} 9. Qf4 {[%emt 0:00:16]} Nh6 {[%emt 0:01:10]} 10. Bd3 {[%emt 0:01:13]} a5 {[%emt 0:00:38]} 11. b5 {[%emt 0:00:16]} Nd7 {[%emt 0:00:27]} 12. O-O {[%emt 0:04:53]} Nc5 {[%emt 0:01:20]} 13. a4 {[%emt 0:00:52]} b6 {[%emt 0:06:53]} 14. Nc3 {[%emt 0:04:14]} Bd7 {[%emt 0:28:07]} 15. Ne2 {[%emt 0:07:32]} Qc7 {[%emt 0:07:17]} 16. Ned4 {[%emt 0:05:08]} O-O-O {[%emt 0:00:04]} 17. Bd2 {[%emt 0:11:24]} Rdg8 {[%emt 0:01:32]} 18. h4 {[%emt 0:07:19]} f6 {[%emt 0:00:38]} 19. Nb3 {[%emt 0:16:13]} g5 {[%emt 0:03:01]} 20. hxg5 {[%emt 0:04:44]} fxg5 {[%emt 0:01:13]} 21. Qe3 {[%emt 0:01:44]} g4 {[%emt 0:05:48]} 22. Nfd4 {[%emt 0:01:09]} Nf7 {[%emt 0:00:51]} 23. Rfe1 {[%emt 0:04:13]} h4 {[%emt 0:02:38]} 24. Qf4 {[%emt 0:05:07]} Rf8 {[%emt 0:14:10]} 25. Bf1 {[%emt 0:07:21]} Ne4 {[%emt 0:02:53]} 26. Rxe4 {[%emt 0:03:22]} dxe4 {[%emt 0:05:31]} 27. Qxe4 {[%emt 0:01:33]} g3 {[%emt 0:02:41]} 28. f4 {[%emt 0:01:08]} Nh6 {[%emt 0:01:52]} 29. c4 {[%emt 0:02:01]} Nf5 {[%emt 0:02:23]} 30. Nxf5 {[%emt 0:02:25]} Rxf5 {[%emt 0:02:14]} 31. Rc1 {[%emt 0:00:57]} Qb7 {[%emt 0:01:16]} 32. Qd4 {[%emt 0:01:49]} Rd8 {[%emt 0:01:12]} 33. Qe3 {[%emt 0:01:02]} Kb8 {[%emt 0:01:08]} 34. Bd3 {[%emt 0:01:41]} Rff8 {[%emt 0:00:44]} 35. Be4 {[%emt 0:00:09]} Qa7 {[%emt 0:00:19]} 36. Bc3 {[%emt 0:02:02]} Bc5 {[%emt 0:00:57]} 37. Nxc5 {[%emt 0:03:49]} bxc5 {[%emt 0:03:50]} 38. b6 {[%emt 0:00:00]} Qa6 {[%emt 0:00:00]} 39. Qxc5 {[%emt 0:00:00]} Bc6 {[%emt 0:00:05]} 40. Qxc6 {[%emt 0:00:00]} Rf7 {[%emt 0:00:40]} 41. Qxe6 {[%emt 0:15:15]} Rfd7 {[%emt 0:15:19]} 42. Bd5 {[%emt 0:00:21]} Qxc4 {[%emt 0:00:29]} 43. Bxc4 {[%emt 0:00:23]} 1-0

[Event "DSAM Bad Wildungen 2024"]
[Site "Bad Wildungen"]
[Date "2024.08.01"]
[Round "1.10"]
[White "Lenhardt, Manfred"]
[Black "Lippert, Daniel"]
[Result "1/2-1/2"]
[Annotator "RC"]
[ECO "D46"]
[WhiteElo "2019"]
[BlackElo "2115"]
[PlyCount "43"]
[EventDate "2024.07.31"]
[EventCountry "GER"]
[SourceTitle "playchess.com"]
[Source "ChessBase"]
[SourceQuality "1"]
[TimeControl "40/5400+30:900+30"]

1. d4 {[%emt 0:00:04]} d5 {[%emt 0:00:10]} 2. Nf3 {[%emt 0:00:06]} Nf6 {[%emt 0:00:04]} 3. c4 {[%emt 0:00:12]} c6 {[%emt 0:00:20]} 4. Nc3 {[%emt 0:00:12]} e6 {[%emt 0:00:12]} 5. e3 {[%emt 0:00:15]} Nbd7 {[%emt 0:00:05]} 6. Qc2 {[%emt 0:00:08]} Bd6 {[%emt 0:01:25]} 7. Bd3 {[%emt 0:00:50]} O-O {[%emt 0:01:12]} 8. O-O {[%emt 0:02:23]} dxc4 {[%emt 0:00:04]} 9. Bxc4 {[%emt 0:00:08]} b5 {[%emt 0:00:34]} 10. Bd3 {[%emt 0:00:08]} Bb7 {[%emt 0:02:24]} 11. e4 {[%emt 0:06:36]} e5 {[%emt 0:00:13]} 12. h3 {[%emt 0:04:18]} exd4 {[%emt 0:38:06]} 13. Nxd4 {[%emt 0:02:19]} Nc5 {[%emt 0:00:20]} 14. Rd1 {[%emt 0:19:37]} Qc7 {[%emt 0:17:43]} 15. Bg5 {[%emt 0:03:16]} Be5 {[%emt 0:02:25]} 16. Nf3 {[%emt 0:13:22]} b4 {[%emt 0:03:39]} 17. Nxe5 {[%emt 0:08:24]} Qxe5 {[%emt 0:02:34]} 18. Bxf6 {[%emt 0:00:39]} Qxf6 {[%emt 0:00:41]} 19. e5 {[%emt 0:06:29]} Qxe5 {[%emt 0:08:55]} 20. Bxh7+ {[%emt 0:01:21]} Kh8 {[%emt 0:00:01]} 21. Ne4 {[%emt 0:00:58]} Nxe4 {[%emt 0:07:14]} 22. Bxe4 {[%emt 0:02:44]} 1/2-1/2

[Event "DSAM Bad Wildungen 2024"]
[Site "Bad Wildungen"]
[Date "2024.08.01"]
[Round "1.11"]
[White "Kull, Florian"]
[Black "Niesel, Matthias P."]
[Result "1-0"]
[Annotator "RC"]
[ECO "D02"]
[WhiteElo "2113"]
[BlackElo "2022"]
[PlyCount "89"]
[EventDate "2024.07.31"]
[EventCountry "GER"]
[SourceTitle "playchess.com"]
[Source "ChessBase"]
[SourceQuality "1"]
[TimeControl "40/5400+30:900+30"]

1. Nf3 {[%emt 0:00:16]} d5 {[%emt 0:01:45]} 2. d4 {[%emt 0:00:18]} Nf6 {[%emt 0:00:34]} 3. g3 {[%emt 0:00:18]} g6 {[%emt 0:00:36]} 4. Bg2 {[%emt 0:00:07]} Bg7 {[%emt 0:00:09]} 5. O-O {[%emt 0:00:07]} O-O {[%emt 0:00:33]} 6. a4 {[%emt 0:00:49]} a5 {[%emt 0:05:30]} 7. c4 {[%emt 0:05:34]} c6 {[%emt 0:03:06]} 8. Qb3 {[%emt 0:04:26]} dxc4 {[%emt 0:04:36]} 9. Qxc4 {[%emt 0:00:17]} Be6 {[%emt 0:00:22]} 10. Qc2 {[%emt 0:01:17]} h6 {[%emt 0:04:01]} 11. Nbd2 {[%emt 0:03:18]} Na6 {[%emt 0:00:37]} 12. e4 {[%emt 0:17:28]} Nb4 {[%emt 0:00:34]} 13. Qc3 {[%emt 0:06:13]} Nd7 {[%emt 0:14:23]} 14. Nb3 {[%emt 0:05:03]} b6 {[%emt 0:01:00]} 15. Be3 {[%emt 0:07:17]} c5 {[%emt 0:03:27]} 16. Ra3 {[%emt 0:00:19]} Rc8 {[%emt 0:09:07]} 17. Qd2 {[%emt 0:02:28]} c4 {[%emt 0:04:19]} 18. Na1 {[%emt 0:02:42]} Nf6 {[%emt 0:04:14]} 19. Ne5 {[%emt 0:00:29]} Ng4 {[%emt 0:01:51]} 20. Nxg4 {[%emt 0:01:11]} Bxg4 {[%emt 0:00:06]} 21. h3 {[%emt 0:01:32]} Be6 {[%emt 0:03:29]} 22. d5 {[%emt 0:01:08]} Bd7 {[%emt 0:00:06]} 23. Bxh6 {[%emt 0:00:45]} Qe8 {[%emt 0:02:16]} 24. Bxg7 {[%emt 0:00:24]} Kxg7 {[%emt 0:00:05]} 25. Qd4+ {[%emt 0:00:36]} f6 {[%emt 0:00:40]} 26. Qxb6 {[%emt 0:02:41]} Ra8 {[%emt 0:00:10]} 27. Rc1 {[%emt 0:01:38]} Qc8 {[%emt 0:01:12]} 28. h4 {[%emt 0:04:06]} Nd3 {[%emt 0:03:11]} 29. Rxd3 {[%emt 0:00:36]} cxd3 {[%emt 0:00:06]} 30. Rxc8 {[%emt 0:00:32]} Raxc8 {[%emt 0:00:34]} 31. Qe3 {[%emt 0:05:00]} Bxa4 {[%emt 0:04:21]} 32. Bf1 {[%emt 0:00:41]} Bc2 {[%emt 0:02:01]} 33. Kg2 {[%emt 0:00:28]} Rb8 {[%emt 0:04:55]} 34. Bxd3 {[%emt 0:01:37]} Bxd3 {[%emt 0:00:35]} 35. Qxd3 {[%emt 0:00:10]} Rxb2 {[%emt 0:01:12]} 36. Qa3 {[%emt 0:02:44]} Rb5 {[%emt 0:02:46]} 37. Qxe7+ {[%emt 0:00:46]} Rf7 {[%emt 0:00:06]} 38. Qe8 {[%emt 0:00:19]} Rb2 {[%emt 0:02:04]} 39. Qa8 {[%emt 0:02:24]} Ra2 {[%emt 0:00:22]} 40. Nb3 {[%emt 0:00:23]} a4 {[%emt 0:00:06]} 41. Nc5 {[%emt 0:15:33]} a3 {[%emt 0:15:32]} 42. d6 {[%emt 0:01:22]} Rd2 {[%emt 0:01:23]} 43. d7 {[%emt 0:00:37]} a2 {[%emt 0:00:06]} 44. d8=Q {[%emt 0:01:33]} Rxd8 {[%emt 0:00:14]} 45. Ne6+ {[%emt 0:00:10]} 1-0

[Event "DSAM Bad Wildungen 2024"]
[Site "Bad Wildungen"]
[Date "2024.08.01"]
[Round "1.12"]
[White "Heutling, Elina"]
[Black "Heck, Norbert"]
[Result "0-1"]
[Annotator "RC"]
[ECO "B33"]
[WhiteElo "1984"]
[BlackElo "2099"]
[PlyCount "150"]
[EventDate "2024.07.31"]
[EventCountry "GER"]
[SourceTitle "playchess.com"]
[Source "ChessBase"]
[SourceQuality "1"]
[TimeControl "40/5400+30:900+30"]

1. e4 {[%emt 0:00:04]} c5 {[%emt 0:00:10]} 2. Nf3 {[%emt 0:00:22]} a6 {[%emt 0:00:07]} 3. Nc3 {[%emt 0:02:11]} Nc6 {[%emt 0:00:27]} 4. d4 {[%emt 0:00:34]} cxd4 {[%emt 0:00:11]} 5. Nxd4 {[%emt 0:00:05]} e5 {[%emt 0:01:49]} 6. Nb3 {[%emt 0:04:25]} Nf6 {[%emt 0:00:19]} 7. Be2 {[%emt 0:09:17]} Bb4 {[%emt 0:02:48]} 8. O-O {[%emt 0:00:12]} O-O {[%emt 0:02:33]} 9. Bg5 {[%emt 0:13:38]} Bxc3 {[%emt 0:00:23]} 10. bxc3 {[%emt 0:00:09]} h6 {[%emt 0:00:08]} 11. Bxf6 {[%emt 0:01:38]} Qxf6 {[%emt 0:00:12]} 12. Nd2 {[%emt 0:05:47]} d6 {[%emt 0:17:02]} 13. Nc4 {[%emt 0:09:49]} Be6 {[%emt 0:01:14]} 14. Nb6 {[%emt 0:08:05]} Rad8 {[%emt 0:00:23]} 15. Bg4 {[%emt 0:12:53]} Qg6 {[%emt 0:07:20]} 16. Bxe6 {[%emt 0:01:43]} fxe6 {[%emt 0:00:07]} 17. f3 {[%emt 0:00:12]} d5 {[%emt 0:04:24]} 18. exd5 {[%emt 0:09:05]} exd5 {[%emt 0:00:08]} 19. Nxd5 {[%emt 0:01:17]} b5 {[%emt 0:00:52]} 20. Rf2 {[%emt 0:06:19]} e4 {[%emt 0:00:16]} 21. fxe4 {[%emt 0:03:11]} Qxe4 {[%emt 0:06:42]} 22. Rd2 {[%emt 0:01:10]} Kh8 {[%emt 0:03:14]} 23. Qe1 {[%emt 0:01:11]} Qc4 {[%emt 0:03:54]} 24. Rad1 {[%emt 0:03:31]} Rde8 {[%emt 0:02:50]} 25. Qg3 {[%emt 0:01:12]} Qc5+ {[%emt 0:00:46]} 26. Kh1 {[%emt 0:00:31]} Qc4 {[%emt 0:05:24]} 27. Rd3 {[%emt 0:01:37]} Ne5 {[%emt 0:00:59]} 28. Ne3 {[%emt 0:00:53]} Nxd3 {[%emt 0:00:43]} 29. Nxc4 {[%emt 0:01:03]} Nf2+ {[%emt 0:00:09]} 30. Kg1 {[%emt 0:00:06]} Nxd1 {[%emt 0:00:18]} 31. Ne5 {[%emt 0:01:00]} Rf5 {[%emt 0:09:28]} 32. Ng6+ {[%emt 0:00:18]} Kh7 {[%emt 0:03:24]} 33. Nh4 {[%emt 0:00:08]} Rfe5 {[%emt 0:03:22]} 34. h3 {[%emt 0:01:57]} Ne3 {[%emt 0:01:12]} 35. Qg6+ {[%emt 0:00:14]} Kg8 {[%emt 0:00:16]} 36. Nf3 {[%emt 0:00:11]} R5e6 {[%emt 0:02:27]} 37. Qd3 {[%emt 0:00:09]} Nc4 {[%emt 0:01:30]} 38. Qd5 {[%emt 0:00:29]} Kh8 {[%emt 0:00:34]} 39. Nd4 {[%emt 0:01:39]} Rf6 {[%emt 0:04:27]} 40. Qd7 {[%emt 0:01:01]} Re5 {[%emt 0:07:13]} 41. Nf3 {[%emt 0:05:24]} Re3 {[%emt 0:01:19]} 42. Qd4 {[%emt 0:00:31]} Rd6 {[%emt 0:02:04]} 43. Qc5 {[%emt 0:00:10]} Rf6 {[%emt 0:02:30]} 44. Qd4 {[%emt 0:00:49]} Rd6 {[%emt 0:02:50]} 45. Qc5 {[%emt 0:00:10]} Rd1+ {[%emt 0:00:53]} 46. Kh2 {[%emt 0:01:27]} Rd8 {[%emt 0:00:37]} 47. Qc7 {[%emt 0:02:39]} Rf8 {[%emt 0:01:43]} 48. Nh4 {[%emt 0:03:45]} Kh7 {[%emt 0:06:49]} 49. Qc5 {[%emt 0:01:58]} Rf6 {[%emt 0:00:56]} 50. Qd4 {[%emt 0:01:20]} Rd6 {[%emt 0:05:18]} 51. Qc5 {[%emt 0:00:07]} Re5 {[%emt 0:00:21]} 52. Qc7 {[%emt 0:02:18]} Rf6 {[%emt 0:00:35]} 53. Qd7 {[%emt 0:01:18]} Nd6 {[%emt 0:01:43]} 54. Nf3 {[%emt 0:00:31]} Re3 {[%emt 0:00:56]} 55. Qc7 {[%emt 0:00:26]} Ne4 {[%emt 0:00:50]} 56. Qe5 {[%emt 0:00:22]} Re2 {[%emt 0:03:13]} 57. Nd2 {[%emt 0:00:45]} Rxd2 {[%emt 0:00:40]} 58. Qxe4+ {[%emt 0:00:03]} Kh8 {[%emt 0:00:10]} 59. Qe8+ {[%emt 0:00:17]} Kh7 {[%emt 0:00:06]} 60. Qe4+ {[%emt 0:00:07]} Kg8 {[%emt 0:00:20]} 61. Qe8+ {[%emt 0:00:16]} Kh7 {[%emt 0:00:50]} 62. Qe4+ {[%emt 0:00:33]} Rg6 {[%emt 0:00:33]} 63. h4 {[%emt 0:00:26]} Rdxg2+ {[%emt 0:00:13]} 64. Qxg2 {[%emt 0:00:05]} Rxg2+ {[%emt 0:00:09]} 65. Kxg2 {[%emt 0:00:02]} Kg6 {[%emt 0:00:07]} 66. Kf3 {[%emt 0:00:49]} Kf5 {[%emt 0:00:06]} 67. a3 {[%emt 0:00:34]} g6 {[%emt 0:00:15]} 68. Kg3 {[%emt 0:00:04]} Ke4 {[%emt 0:00:25]} 69. Kg4 {[%emt 0:00:27]} a5 {[%emt 0:00:10]} 70. Kg3 {[%emt 0:00:04]} Kd5 {[%emt 0:00:57]} 71. Kf4 {[%emt 0:00:07]} Kc4 {[%emt 0:00:10]} 72. Ke5 {[%emt 0:00:08]} g5 {[%emt 0:00:13]} 73. h5 {[%emt 0:00:36]} Kxc3 {[%emt 0:00:08]} 74. Kf5 {[%emt 0:00:04]} Kxc2 {[%emt 0:00:10]} 75. Kg6 {[%emt 0:00:05]} g4 {[%emt 0:00:06]} 0-1

[Event "DSAM Bad Wildungen 2024"]
[Site "Bad Wildungen"]
[Date "2024.08.01"]
[Round "1.13"]
[White "Meier, David Geffrey"]
[Black "Stierhof, Michael"]
[Result "1-0"]
[Annotator "RC"]
[ECO "D30"]
[WhiteElo "2105"]
[BlackElo "1994"]
[PlyCount "131"]
[EventDate "2024.07.31"]
[EventCountry "GER"]
[SourceTitle "playchess.com"]
[Source "ChessBase"]
[SourceQuality "1"]
[TimeControl "40/5400+30:900+30"]

1. d4 {[%emt 0:00:19]} Nf6 {[%emt 0:00:41]} 2. c4 {[%emt 0:00:57]} e6 {[%emt 0:00:05]} 3. Nf3 {[%emt 0:00:16]} d5 {[%emt 0:00:41]} 4. g3 {[%emt 0:00:22]} c5 {[%emt 0:00:46]} 5. cxd5 {[%emt 1:31:06]} exd5 {[%emt 0:00:11]} 6. Bg2 {[%emt 0:00:00]} Nc6 {[%emt 0:00:32]} 7. O-O {[%emt 0:01:00]} cxd4 {[%emt 0:02:04]} 8. Nxd4 {[%emt 0:00:00]} Bc5 {[%emt 0:00:11]} 9. Be3 {[%emt 0:00:00]} Qb6 {[%emt 0:04:41]} 10. Nc3 {[%emt 0:00:00]} Bxd4 {[%emt 0:10:57]} 11. Na4 {[%emt 0:00:00]} Bxe3 {[%emt 0:00:25]} 12. Nxb6 {[%emt 0:00:00]} Bxb6 {[%emt 0:00:08]} 13. Bxd5 {[%emt 0:00:00]} Nxd5 {[%emt 0:02:31]} 14. Qxd5 {[%emt 0:00:00]} O-O {[%emt 0:00:20]} 15. Rfd1 {[%emt 0:00:00]} Be6 {[%emt 0:02:13]} 16. Qe4 {[%emt 0:00:00]} Rfe8 {[%emt 0:00:47]} 17. Qa4 {[%emt 0:00:00]} Rad8 {[%emt 0:04:55]} 18. Rxd8 {[%emt 0:00:00]} Rxd8 {[%emt 0:00:05]} 19. Rd1 {[%emt 0:00:00]} Rxd1+ {[%emt 0:11:17]} 20. Qxd1 {[%emt 0:00:00]} h5 {[%emt 0:00:18]} 21. Kg2 {[%emt 0:00:00]} g6 {[%emt 0:00:59]} 22. a3 {[%emt 0:00:00]} Nd4 {[%emt 0:05:34]} 23. Qd3 {[%emt 0:08:00]} Bd7 {[%emt 0:08:26]} 24. e4 {[%emt 0:00:00]} Bg4 {[%emt 0:03:49]} 25. h3 {[%emt 0:00:00]} Bf3+ {[%emt 0:02:31]} 26. Kh2 {[%emt 0:00:00]} h4 {[%emt 0:06:25]} 27. Qe3 {[%emt 0:00:00]} hxg3+ {[%emt 0:02:10]} 28. fxg3 {[%emt 0:00:00]} Bd1 {[%emt 0:08:37]} 29. Qf4 {[%emt 0:00:00]} Ne6 {[%emt 0:08:27]} 30. Qb8+ {[%emt 0:00:00]} Kg7 {[%emt 0:00:05]} 31. Qxb7 {[%emt 0:00:00]} Bf3 {[%emt 0:00:17]} 32. Qd5 {[%emt 0:00:00]} Nd4 {[%emt 0:04:26]} 33. Qe5+ {[%emt 0:00:00]} Kg8 {[%emt 0:02:26]} 34. Qe8+ {[%emt 0:00:00]} Kg7 {[%emt 0:00:05]} 35. Qe5+ {[%emt 0:00:00]} Kg8 {[%emt 0:02:09]} 36. Qe8+ {[%emt 0:01:29]} Kg7 {[%emt 0:00:08]} 37. Qe5+ {[%emt 0:01:07]} Kg8 {[%emt 0:00:47]} 38. Qf4 {[%emt 0:02:50]} Bd1 {[%emt 0:03:30]} 39. Qb8+ {[%emt 0:00:49]} Kg7 {[%emt 0:00:25]} 40. Qe5+ {[%emt 0:00:19]} Kg8 {[%emt 0:00:13]} 41. Qe8+ {[%emt 0:16:49]} Kg7 {[%emt 0:15:10]} 42. Kg2 {[%emt 0:00:00]} Ne6 {[%emt 0:00:00]} 43. Qb8 {[%emt 0:00:00]} Bd4 {[%emt 0:00:00]} 44. h4 {[%emt 0:00:00]} a5 {[%emt 0:00:00]} 45. b4 {[%emt 0:00:00]} axb4 {[%emt 0:00:00]} 46. axb4 {[%emt 0:00:00]} Bc2 {[%emt 0:00:00]} 47. Qb7 {[%emt 0:00:00]} Bf6 {[%emt 0:00:00]} 48. Qd5 {[%emt 0:00:00]} Be7 {[%emt 0:00:00]} 49. Qc4 {[%emt 0:00:00]} Ba4 {[%emt 0:00:00]} 50. b5 {[%emt 0:00:00]} Nc5 {[%emt 0:00:00]} 51. Kf3 {[%emt 0:00:00]} Bd1+ {[%emt 0:00:18]} 52. Ke3 {[%emt 0:00:00]} Bg4 {[%emt 0:00:20]} 53. Qd4+ {[%emt 0:00:00]} Kg8 {[%emt 0:00:49]} 54. Qe5 {[%emt 0:00:36]} Bf8 {[%emt 0:10:36]} 55. Qc7 {[%emt 0:01:08]} Bh6+ {[%emt 0:00:00]} 56. Kf2 {[%emt 0:01:02]} Nxe4+ {[%emt 0:00:00]} 57. Kg2 Bf8 {[%emt 0:01:30]} 58. Qf4 {[%emt 0:02:37]} f5 {[%emt 0:00:00]} 59. Qc7 {[%emt 0:01:05]} Nd6 {[%emt 0:00:00]} 60. Qc5 {[%emt 0:01:38]} Be2 {[%emt 0:00:00]} 61. Qd5+ {[%emt 0:00:40]} Kh7 {[%emt 0:00:00]} 62. Qa8 {[%emt 0:00:39]} Kg8 {[%emt 0:00:00]} 63. Qd5+ {[%emt 0:00:08]} Kh7 {[%emt 0:00:00]} 64. Qa8 {[%emt 0:00:12]} Bg7 {[%emt 0:01:17]} 65. b6 {[%emt 0:01:04]} Bb5 {[%emt 0:00:01]} 66. Qd5 {[%emt 0:00:34]} 1-0

[Event "DSAM Bad Wildungen 2024"]
[Site "Bad Wildungen"]
[Date "2024.08.01"]
[Round "1.14"]
[White "Trunz, Michelle"]
[Black "Pixa, Richard"]
[Result "1-0"]
[Annotator "RC"]
[ECO "D31"]
[WhiteElo "2044"]
[BlackElo "2099"]
[PlyCount "71"]
[EventDate "2024.07.31"]
[EventCountry "GER"]
[SourceTitle "playchess.com"]
[Source "ChessBase"]
[SourceQuality "1"]
[TimeControl "40/5400+30:900+30"]

1. d4 {[%emt 0:00:01]} d5 {[%emt 0:00:09]} 2. c4 {[%emt 0:00:03]} e6 {[%emt 0:00:07]} 3. Nc3 {[%emt 0:00:04]} c6 {[%emt 0:00:12]} 4. e4 {[%emt 0:00:07]} dxe4 {[%emt 0:00:08]} 5. Nxe4 {[%emt 0:00:01]} Bb4+ {[%emt 0:00:15]} 6. Nc3 {[%emt 0:00:07]} c5 {[%emt 0:03:42]} 7. Nf3 {[%emt 0:00:14]} Nf6 {[%emt 0:07:36]} 8. Be2 {[%emt 0:04:37]} Nc6 {[%emt 0:02:41]} 9. Be3 {[%emt 0:05:29]} Ne4 {[%emt 0:09:44]} 10. Rc1 {[%emt 0:05:21]} cxd4 {[%emt 0:16:15]} 11. Nxd4 {[%emt 0:01:15]} Nxc3 {[%emt 0:00:17]} 12. bxc3 {[%emt 0:00:22]} Bd6 {[%emt 0:05:43]} 13. O-O {[%emt 0:05:21]} O-O {[%emt 0:02:23]} 14. Nxc6 {[%emt 0:02:28]} bxc6 {[%emt 0:01:19]} 15. c5 {[%emt 0:01:14]} Be5 {[%emt 0:03:00]} 16. f4 {[%emt 0:05:09]} Bf6 {[%emt 0:01:40]} 17. Bf3 {[%emt 0:06:10]} Ba6 {[%emt 0:04:05]} 18. c4 {[%emt 0:02:25]} Qa5 {[%emt 0:05:05]} 19. Bxc6 {[%emt 0:04:29]} Rab8 {[%emt 0:02:06]} 20. Qa4 {[%emt 0:03:54]} Qxa4 {[%emt 0:02:53]} 21. Bxa4 {[%emt 0:00:02]} Rb2 {[%emt 0:01:48]} 22. Rf2 {[%emt 0:02:43]} Rc8 {[%emt 0:05:24]} 23. Rxb2 {[%emt 0:03:57]} Bxb2 {[%emt 0:00:10]} 24. Rc2 {[%emt 0:00:21]} Bf6 {[%emt 0:01:14]} 25. c6 {[%emt 0:00:39]} Rc7 {[%emt 0:00:29]} 26. Bc5 {[%emt 0:01:03]} Be7 {[%emt 0:03:00]} 27. Bxe7 {[%emt 0:00:23]} Rxe7 {[%emt 0:00:09]} 28. Rd2 {[%emt 0:05:26]} f6 {[%emt 0:04:22]} 29. Bb5 {[%emt 0:06:33]} Bxb5 {[%emt 0:02:41]} 30. cxb5 {[%emt 0:01:02]} Kf7 {[%emt 0:02:03]} 31. a4 {[%emt 0:01:19]} e5 {[%emt 0:00:23]} 32. a5 {[%emt 0:02:17]} e4 {[%emt 0:00:34]} 33. b6 {[%emt 0:01:20]} axb6 {[%emt 0:00:14]} 34. axb6 {[%emt 0:00:02]} e3 {[%emt 0:00:19]} 35. Re2 {[%emt 0:00:50]} Ke8 {[%emt 0:01:18]} 36. b7 {[%emt 0:00:34]} 1-0

[Event "DSAM Bad Wildungen 2024"]
[Site "Bad Wildungen"]
[Date "2024.08.01"]
[Round "1.15"]
[White "Roess, Jonas"]
[Black "Marcziter, Alex"]
[Result "1/2-1/2"]
[Annotator "RC"]
[ECO "C77"]
[WhiteElo "1879"]
[BlackElo "2024"]
[PlyCount "96"]
[EventDate "2024.07.31"]
[EventCountry "GER"]
[SourceTitle "playchess.com"]
[Source "ChessBase"]
[SourceQuality "1"]
[TimeControl "40/5400+30:900+30"]

1. e4 {[%emt 0:00:06]} e5 {[%emt 0:00:20]} 2. Nf3 {[%emt 0:00:21]} Nc6 {[%emt 0:00:29]} 3. Bb5 {[%emt 0:00:48]} a6 {[%emt 0:00:33]} 4. Ba4 {[%emt 0:00:08]} Nf6 {[%emt 0:00:57]} 5. d3 {[%emt 0:00:27]} b5 {[%emt 0:01:45]} 6. Bb3 {[%emt 0:00:05]} Be7 {[%emt 0:01:32]} 7. a4 {[%emt 0:00:21]} Bb7 {[%emt 0:04:13]} 8. c3 {[%emt 0:01:05]} d6 {[%emt 0:01:29]} 9. Nbd2 {[%emt 0:06:46]} O-O {[%emt 0:01:40]} 10. Nf1 {[%emt 0:00:42]} d5 {[%emt 0:08:03]} 11. exd5 {[%emt 0:10:06]} Nxd5 {[%emt 0:00:20]} 12. Ng3 {[%emt 0:12:47]} Re8 {[%emt 0:09:21]} 13. O-O {[%emt 0:01:58]} h6 {[%emt 0:10:01]} 14. Re1 {[%emt 0:02:34]} Bc5 {[%emt 0:03:20]} 15. d4 {[%emt 0:06:49]} Ba7 {[%emt 0:05:31]} 16. Nxe5 {[%emt 0:08:57]} Nxe5 {[%emt 0:01:22]} 17. Rxe5 {[%emt 0:00:32]} c5 {[%emt 0:11:55]} 18. Rxe8+ {[%emt 0:06:28]} Qxe8 {[%emt 0:00:11]} 19. axb5 {[%emt 0:03:00]} axb5 {[%emt 0:03:16]} 20. dxc5 {[%emt 0:04:01]} Bxc5 {[%emt 0:03:24]} 21. Rxa8 {[%emt 0:00:12]} Bxa8 {[%emt 0:01:07]} 22. Kf1 {[%emt 0:02:27]} Nf6 {[%emt 0:04:04]} 23. Qe2 {[%emt 0:02:53]} Qd7 {[%emt 0:05:22]} 24. Be3 {[%emt 0:01:13]} Bxe3 {[%emt 0:01:10]} 25. Qxe3 {[%emt 0:00:16]} Ng4 {[%emt 0:01:14]} 26. Qf4 {[%emt 0:04:24]} Bc6 {[%emt 0:11:43]} 27. h3 {[%emt 0:04:38]} Nf6 {[%emt 0:01:04]} 28. Kg1 {[%emt 0:03:24]} Qb7 {[%emt 0:00:42]} 29. Nf5 {[%emt 0:01:59]} Ne8 {[%emt 0:04:21]} 30. Qg3 {[%emt 0:02:10]} Kh8 {[%emt 0:00:49]} 31. Bc2 {[%emt 0:02:54]} Qd7 {[%emt 0:01:40]} 32. Qe3 {[%emt 0:01:29]} Qd5 {[%emt 0:01:38]} 33. f3 {[%emt 0:00:37]} Qe6 {[%emt 0:00:39]} 34. Qxe6 {[%emt 0:02:27]} fxe6 {[%emt 0:00:01]} 35. Nd4 {[%emt 0:00:53]} Bd7 {[%emt 0:00:10]} 36. f4 {[%emt 0:00:22]} Nc7 {[%emt 0:00:58]} 37. Kf2 {[%emt 0:00:36]} Nd5 {[%emt 0:00:24]} 38. g3 {[%emt 0:01:06]} Kg8 {[%emt 0:00:44]} 39. Bb3 {[%emt 0:00:21]} Kf8 {[%emt 0:01:39]} 40. f5 {[%emt 0:00:49]} e5 {[%emt 0:00:37]} 41. Ne6+ {[%emt 0:15:49]} Bxe6 {[%emt 0:15:07]} 42. fxe6 {[%emt 0:00:12]} Nc7 {[%emt 0:00:20]} 43. Ke3 {[%emt 0:00:55]} Ke7 {[%emt 0:00:25]} 44. Ke4 {[%emt 0:00:08]} Kf6 {[%emt 0:00:00]} 45. g4 {[%emt 0:00:00]} g5 {[%emt 0:00:00]} 46. Bd5 {[%emt 0:00:00]} Na6 {[%emt 0:00:00]} 47. c4 {[%emt 0:00:00]} Nc5+ {[%emt 0:00:00]} 48. Ke3 {[%emt 0:00:00]} b4 {[%emt 0:00:00]} 1/2-1/2

[Event "DSAM Bad Wildungen 2024"]
[Site "Bad Wildungen"]
[Date "2024.08.01"]
[Round "1.16"]
[White "Lu, Yunong Elias"]
[Black "Cramer, Philipp"]
[Result "1-0"]
[Annotator "RC"]
[ECO "B38"]
[WhiteElo "1996"]
[BlackElo "1905"]
[PlyCount "61"]
[EventDate "2024.07.31"]
[EventCountry "GER"]
[SourceTitle "playchess.com"]
[Source "ChessBase"]
[SourceQuality "1"]
[TimeControl "40/5400+30:900+30"]

1. e4 {[%emt 0:00:04]} c5 {[%emt 0:00:17]} 2. Nf3 {[%emt 0:00:04]} g6 {[%emt 0:00:38]} 3. c4 {[%emt 0:00:05]} Bg7 {[%emt 0:00:28]} 4. d4 {[%emt 0:00:55]} cxd4 {[%emt 0:00:10]} 5. Nxd4 {[%emt 0:00:04]} Nf6 {[%emt 0:02:51]} 6. Nc3 {[%emt 0:00:20]} Qa5 {[%emt 0:10:08]} 7. f3 {[%emt 0:02:29]} Nc6 {[%emt 0:00:25]} 8. Nb3 {[%emt 0:09:40]} Qd8 {[%emt 0:03:25]} 9. Be3 {[%emt 0:00:43]} d6 {[%emt 0:01:04]} 10. Be2 {[%emt 0:00:35]} Be6 {[%emt 0:05:27]} 11. Nd4 {[%emt 0:06:04]} O-O {[%emt 0:12:17]} 12. Qd2 {[%emt 0:05:53]} Nxd4 {[%emt 0:08:00]} 13. Bxd4 {[%emt 0:00:09]} Nd7 {[%emt 0:03:00]} 14. Bxg7 {[%emt 0:02:27]} Kxg7 {[%emt 0:01:20]} 15. O-O {[%emt 0:00:42]} Rc8 {[%emt 0:01:40]} 16. b3 {[%emt 0:00:38]} Qa5 {[%emt 0:01:25]} 17. Kh1 {[%emt 0:01:00]} Rc7 {[%emt 0:03:44]} 18. Rab1 {[%emt 0:04:52]} a6 {[%emt 0:02:34]} 19. a4 {[%emt 0:03:02]} Qb4 {[%emt 0:04:59]} 20. f4 {[%emt 0:06:31]} f6 {[%emt 0:04:16]} 21. Qe3 {[%emt 0:11:26]} Qc5 {[%emt 0:01:34]} 22. Qg3 {[%emt 0:00:28]} f5 {[%emt 0:01:14]} 23. exf5 {[%emt 0:11:40]} Qxf5 {[%emt 0:01:45]} 24. Bd3 {[%emt 0:02:09]} Qh5 {[%emt 0:10:23]} 25. Rbe1 {[%emt 0:03:45]} Nc5 {[%emt 0:01:05]} 26. Bc2 {[%emt 0:00:05]} Bf5 {[%emt 0:06:07]} 27. Bd1 {[%emt 0:00:51]} Qh6 {[%emt 0:00:43]} 28. Nd5 {[%emt 0:00:36]} Rd7 {[%emt 0:00:17]} 29. Qc3+ {[%emt 0:00:20]} Kf7 {[%emt 0:01:07]} 30. Rxe7+ {[%emt 0:00:57]} Rxe7 {[%emt 0:00:44]} 31. Qf6+ {[%emt 0:00:06]} 1-0